bitfinex-derivatives/quotes_ETHF0:USTF0_20240924
["timestamp","ask_amount","ask_price","bid_price","bid_amount"]
[1727220267715,0.37593,2659.9,2659.8,1.63237267]
[1727220267905,0.37593,2659.9,2659.8,2.61407945]
[1727220268409,0.37593,2659.9,2659.8,2.09944221]
[1727220268606,0.37593,2659.9,2659.8,0.98212216]
[1727220269213,0.37593,2659.9,2659.8,2.09942909]
[1727220269408,0.37593,2659.9,2659.8,0.98212216]
[1727220269599,1.3530446,2660.1,2659.9,0.37593]
[1727220269802,0.37591,2660.1,2660.0,0.9813382]
[1727220271209,0.37591,2660.1,2660.0,5.81891911]
[1727220271508,2.1842346,2660.2,2660.0,6.68549821]
[1727220271509,1.1778,2660.2,2660.0,6.68549821]
[1727220271713,0.8019,2660.2,2660.1,0.98095499]
[1727220272308,0.8019,2660.2,2660.1,1.35685499]
[1727220272609,0.8019,2660.2,2660.1,0.98095499]
[1727220273007,1.31572,2660.0,2659.9,0.98095499]
[1727220273217,1.31572,2660.0,2659.7,0.98095499]
[1727220273218,0.37594,2659.8,2659.7,0.98095499]
[1727220273410,0.37596,2659.7,2659.6,0.98095499]
[1727220273719,1.20996,2659.7,2659.6,0.98095499]
[1727220274713,1.408189,2659.9,2659.6,4.0979151]
[1727220274915,0.79884,2659.9,2659.7,2.47322018]
[1727220275217,0.79884,2659.9,2659.7,1.35724934]
[1727220275811,0.79884,2659.9,2659.7,0.98128934]
[1727220276507,0.37594,2659.9,2659.7,0.98128934]
[1727220278322,0.37594,2659.8,2659.7,0.98128934]
[1727220279816,0.37594,2659.9,2659.7,2.09708354]
[1727220280016,0.37594,2659.9,2659.7,0.98128934]
[1727220280325,0.277,2660.8,2659.8,31.36667527]
[1727220280509,1.47786281,2661.1,2660.7,3.2078]
[1727220280712,0.37577,2661.1,2660.8,0.97971246]
[1727220281324,0.37578,2661.0,2660.8,0.97971246]
[1727220281615,4.36026281,2661.3,2660.7,4.56332246]
[1727220281616,0.37577,2661.1,2660.7,4.56332246]
[1727220281818,0.37578,2661.0,2660.7,4.56332246]
[1727220282013,3.24962281,2661.3,2660.7,4.18751246]
[1727220282220,5.29962281,2661.3,2660.7,4.56333246]
[1727220282415,3.24962281,2661.3,2660.7,4.56333246]
[1727220282615,0.37577,2661.1,2660.7,4.56333246]
[1727220283512,0.37577,2661.1,2660.7,3.58362]
[1727220285410,0.37577,2661.1,2660.8,0.3758]
[1727220286422,0.37577,2661.1,2660.7,3.58361]
[1727220287120,0.37577,2661.1,2660.8,0.3758]
[1727220288022,0.37577,2661.1,2661.0,3.2078]
[1727220288913,2.8824,2661.3,2661.0,3.2078]
[1727220288914,0.37576,2661.2,2661.0,3.2078]
[1727220289218,0.4092,2661.3,2661.0,3.2078]
[1727220289429,0.4237,2661.5,2661.1,0.4072]
[1727220289621,0.4237,2661.5,2661.3,3.2078]
[1727220289821,1.2493,2661.6,2661.3,3.2078]
[1727220290319,0.37571,2661.5,2661.3,3.2078]
[1727220296633,0.8736,2661.6,2661.4,0.37571]
[1727220296824,0.8736,2661.6,2661.3,3.2078]
[1727220297231,0.8736,2661.6,2661.4,0.37571]
[1727220297637,0.8736,2661.6,2661.3,3.2078]
[1727220297826,0.8736,2661.6,2661.4,0.37571]
[1727220298827,1.24929,2661.6,2661.5,3.2078]
[1727220303538,1.24929,2661.6,2661.3,0.37573]
[1727220303728,1.24929,2661.6,2661.5,3.2078]
[1727220308140,0.37571,2661.5,2661.3,0.37573]
[1727220308330,0.37571,2661.5,2661.4,3.2078]
[1727220310526,0.8736,2661.6,2661.4,3.2078]
[1727220310733,1.24929,2661.6,2661.4,3.2078]
[1727220310936,1.24929,2661.6,2661.4,3.58351]
[1727220311237,1.24929,2661.6,2661.4,3.2078]
[1727220312737,0.8736,2661.6,2661.4,3.58352]
[1727220313828,0.8736,2661.6,2661.5,0.3757]
[1727220314732,0.4061,2661.8,2661.5,4.1333]
[1727220314935,0.78176,2661.8,2661.7,3.2078]
[1727220316630,0.78176,2661.8,2661.5,0.7935]
[1727220316831,0.78176,2661.8,2661.7,3.2078]
[1727220320741,0.37568,2661.7,2661.5,0.7935]
[1727220320941,0.37568,2661.7,2661.6,3.2078]
[1727220321742,0.37568,2661.7,2661.5,0.7935]
[1727220321946,0.37568,2661.7,2661.6,3.2078]
[1727220322838,0.37568,2661.7,2661.5,0.7935]
[1727220323035,0.37568,2661.7,2661.6,3.2078]
[1727220324143,0.78177,2661.8,2661.6,3.2078]
[1727220324552,0.37568,2661.7,2661.6,3.2078]
[1727220329054,0.37568,2661.7,2661.5,0.97971246]
[1727220329245,0.37568,2661.7,2661.6,3.2078]
[1727220332548,0.37568,2661.7,2661.6,4.18751246]
[1727220334353,2.25963281,2661.8,2661.6,4.18751246]
[1727220334556,1.88408054,2661.8,2661.6,4.56320246]
[1727220334858,2.25975054,2661.8,2661.6,4.18751246]
[1727220335056,0.37568,2661.7,2661.6,4.18751246]
[1727220335256,0.37568,2661.7,2661.6,5.31221901]
[1727220335464,1.85366054,2661.7,2661.6,5.82600137]
[1727220335658,1.85366054,2661.7,2661.6,5.31230502]
[1727220337061,1.47798054,2661.7,2661.6,5.22133943]
[1727220337267,1.47798054,2661.7,2661.6,6.31521812]
[1727220337453,1.47798054,2661.7,2661.6,4.84564943]
[1727220338465,1.47798054,2661.7,2661.6,6.31521812]
[1727220338466,1.85366054,2661.7,2661.6,6.31521812]
[1727220339158,1.85366054,2661.7,2661.6,5.80149141]
[1727220339359,1.85366054,2661.7,2661.6,6.31528984]
[1727220339558,2.27566054,2661.7,2661.6,6.31535675]
[1727220340565,2.27566054,2661.7,2661.6,6.31541988]
[1727220340766,2.27566054,2661.7,2661.6,6.31540712]
[1727220341573,1.89998054,2661.7,2661.6,6.69109712]
[1727220341781,0.422,2661.7,2661.6,4.84583843]
[1727220341982,0.422,2661.7,2661.6,6.31710615]
[1727220341983,2.27566054,2661.7,2661.6,6.31710615]
[1727220342871,2.27566054,2661.7,2661.6,6.31718495]
[1727220343369,2.27566054,2661.7,2661.6,6.31800397]
[1727220343684,6.44368,2661.7,2661.6,2.6200286]
[1727220343878,8.41416374,2661.7,2661.6,0.98109235]
[1727220344277,1.73688,2661.7,2661.6,2.62030304]
[1727220344880,1.73688,2661.7,2661.6,2.62027717]
[1727220345476,1.73688,2661.7,2661.6,2.62031563]
[1727220345978,3.70736374,2661.7,2661.6,2.62031563]
[1727220346180,3.70736374,2661.7,2661.6,2.10623601]
[1727220346389,1.73688,2661.7,2661.6,2.10623601]
[1727220346571,5.49368,2661.7,2661.6,2.59639844]
[1727220346772,5.49368,2661.7,2661.6,3.1104741]
[1727220346975,1.73688,2661.7,2661.6,1.63920638]
[1727220347374,1.73688,2661.7,2661.6,3.1104741]
[1727220347976,1.90085107,2661.7,2661.6,6.31859716]
[1727220348179,1.90085107,2661.7,2661.6,5.22298313]
[1727220348372,1.90085107,2661.7,2661.6,6.69507819]
[1727220348891,1.90085107,2661.7,2661.6,6.31938819]
[1727220349190,1.90085107,2661.7,2661.6,6.31939421]
[1727220349774,1.90085107,2661.7,2661.6,5.80531855]
[1727220349986,1.90085107,2661.7,2661.6,6.31959438]
[1727220350487,1.90085107,2661.7,2661.6,6.31961999]
[1727220351287,1.47885107,2661.7,2661.6,6.69530999]
[1727220351482,1.47885107,2661.7,2661.6,7.6298655]
[1727220351483,0.4201,2661.7,2661.6,7.6298655]
[1727220351793,0.4201,2661.7,2661.6,9.88110531]
[1727220351979,0.4201,2661.7,2661.6,7.6298655]
[1727220352874,0.4201,2661.7,2661.6,7.62934471]
[1727220353289,0.4201,2661.7,2661.6,7.62940762]
[1727220354781,0.4201,2661.7,2661.6,4.84703745]
[1727220355383,0.4201,2661.7,2661.6,7.62716904]
[1727220355986,0.4201,2661.7,2661.6,8.00285904]
[1727220356977,0.4201,2661.7,2661.6,6.66654838]
[1727220357182,0.4201,2661.7,2661.6,8.00208437]
[1727220358485,0.4201,2661.7,2661.6,5.22079114]
[1727220358692,0.4201,2661.7,2661.6,6.04269617]
[1727220358885,0.4201,2661.7,2661.6,8.0021211]
[1727220360491,0.4201,2661.7,2661.6,8.00205032]
[1727220360888,0.4201,2661.7,2661.6,4.33143345]
[1727220361087,2.27463107,2661.7,2661.6,1.98420256]
[1727220361283,4.55258,2661.7,2661.6,1.63633759]
[1727220361589,6.52306374,2661.7,2661.6,2.10320267]
[1727220361795,7.33306374,2661.7,2661.6,2.61696731]
[1727220361995,7.33306374,2661.7,2661.6,2.10320267]
[1727220362295,5.36258,2661.7,2661.6,2.61683592]
[1727220362483,7.33306374,2661.7,2661.6,2.10320267]
[1727220363487,7.33306374,2661.7,2661.6,2.10289642]
[1727220363791,7.33306374,2661.7,2661.6,0.9805236]
[1727220368398,7.33306374,2661.7,2661.5,0.9805236]
[1727220368600,2.28298153,2661.6,2661.5,0.9805236]
[1727220368789,2.28298153,2661.6,2661.5,3.10631376]
[1727220368989,2.28298153,2661.6,2661.5,1.63576972]
[1727220369694,2.28298153,2661.6,2661.5,1.1222329]
[1727220369896,2.28298153,2661.6,2661.5,2.6159566]
[1727220370293,2.28298153,2661.6,2661.5,1.63580403]
[1727220370497,2.28298153,2661.6,2661.5,1.63579514]
[1727220370689,1.90729153,2661.6,2661.5,1.63579514]
[1727220370990,1.90729153,2661.6,2661.5,0.98004482]
[1727220371297,1.90729153,2661.6,2661.5,2.61577688]
[1727220371688,1.90729153,2661.6,2661.5,1.63573206]
[1727220372087,1.90729153,2661.6,2661.5,3.1062761]
[1727220373196,1.90729153,2661.6,2661.5,1.63573206]
[1727220374196,1.90729153,2661.6,2661.5,3.1062761]
[1727220374399,1.90729153,2661.6,2661.5,1.63573206]
[1727220374786,1.90729153,2661.6,2661.5,3.1062761]
[1727220375188,1.90729153,2661.6,2661.3,0.98059922]
[1727220375189,1.31502,2661.4,2661.3,0.98059922]
[1727220375392,1.31502,2661.4,2660.9,0.98059922]
[1727220375393,5.80436211,2661.3,2660.9,0.98059922]
[1727220375589,5.80436211,2661.3,2660.8,0.4289]
[1727220375590,1.97094008,2661.1,2660.8,1.40949922]
[1727220375785,1.47828194,2660.9,2660.8,1.40949922]
[1727220376197,1.85407194,2661.0,2660.8,0.4289]
[1727220376995,1.85407194,2661.0,2660.8,3.6367]
[1727220377195,0.37579,2661.0,2660.8,0.4289]
[1727220377904,1.85407194,2661.0,2660.8,0.4289]
[1727220378103,0.37579,2661.0,2660.8,0.4289]
[1727220378402,1.47828194,2661.1,2660.8,4.99309922]
[1727220378403,0.4077,2661.1,2660.8,4.99309922]
[1727220380700,0.4077,2661.1,2660.8,4.0125]
[1727220381497,0.78346,2661.1,2660.8,4.0125]
[1727220383691,0.37576,2661.1,2660.8,4.0125]
[1727220384400,7.01496211,2661.3,2660.8,3.6367]
[1727220384604,0.37578,2661.0,2660.8,3.6367]
[1727220385105,0.81,2661.1,2660.8,3.6367]
[1727220385106,0.37579,2660.9,2660.8,3.6367]
[1727220385307,0.4192,2660.9,2660.6,0.98059922]
[1727220385604,0.4192,2660.9,2660.4,3.2078]
[1727220385605,0.37585,2660.5,2660.4,4.99239922]
[1727220386699,0.37585,2660.5,2660.4,4.0118]
[1727220386899,0.37586,2660.4,2660.3,0.98059922]
[1727220387202,0.37587,2660.3,2660.2,1.78459922]
[1727220387404,0.37587,2660.3,2660.2,0.804]
[1727220387810,0.3759,2660.1,2660.0,0.98059922]
[1727220387999,0.3759,2660.1,2659.9,1.81959922]
[1727220388199,0.3759,2660.1,2660.0,3.2078]
[1727220389616,0.3759,2660.1,2659.9,0.839]
[1727220389617,0.3759,2660.1,2659.9,0.8203]
[1727220390301,0.37591,2660.1,2659.9,0.8203]
[1727220390503,0.393,2660.0,2659.9,0.8203]
[1727220390902,0.76892,2660.0,2659.9,0.8203]
[1727220391604,11.9122,2660.0,2659.1,0.088]
[1727220391794,11.9122,2660.0,2659.2,0.4108]
[1727220391795,2.136,2659.5,2659.2,0.4108]
[1727220392002,2.136,2659.5,2659.2,3.6186]
[1727220392501,0.376,2659.5,2659.2,3.6186]
[1727220392698,0.376,2659.5,2659.3,0.4054]
[1727220394007,0.376,2659.5,2659.2,0.4108]
[1727220394008,0.376,2659.5,2659.2,3.6186]
[1727220394205,0.376,2659.5,2659.3,0.4052]
[1727220395707,0.376,2659.4,2659.3,0.4052]
[1727220397597,0.37601,2659.3,2659.2,0.4108]
[1727220398813,0.37601,2659.4,2659.2,0.4108]
[1727220399599,0.37599,2659.5,2659.2,0.78682]
[1727220399803,0.4036,2659.6,2659.2,3.99462]
[1727220400110,0.37601,2659.4,2659.2,0.4108]
[1727220400912,0.4036,2659.6,2659.2,0.4108]
[1727220400913,0.37601,2659.3,2659.2,0.4108]
[1727220402108,0.37601,2659.3,2659.1,0.4053]
[1727220402308,0.76693,2659.2,2659.1,0.4053]
[1727220402807,0.3909,2659.2,2659.1,0.4053]
[1727220403417,0.76693,2659.2,2659.1,0.4053]
[1727220409021,0.376,2659.4,2659.2,0.37602]
[1727220409223,0.37602,2659.3,2659.2,3.2078]
[1727220409719,0.37604,2659.1,2659.0,0.3863]
[1727220410316,1.72834,2659.1,2659.0,0.3863]
[1727220411321,0.77834,2659.1,2659.0,0.3863]
[1727220416224,0.37604,2659.1,2659.0,0.3863]
[1727220416727,0.37604,2659.2,2659.0,0.76236]
[1727220416921,0.37604,2659.1,2659.0,0.3863]
[1727220417720,0.37604,2659.1,2659.0,0.76236]
[1727220418720,0.37604,2659.1,2659.0,0.3863]
[1727220420522,0.37604,2659.2,2659.0,0.76235]
[1727220420722,0.37604,2659.2,2659.1,0.3983]
[1727220421321,0.80704,2659.2,2659.1,0.3983]
[1727220423019,1.20834,2659.2,2659.1,0.3983]
[1727220425122,1.4223,2659.4,2659.2,0.37603]
[1727220425123,0.4093,2659.4,2659.2,0.37603]
[1727220425328,0.78531,2659.4,2659.2,3.2078]
[1727220425524,0.37601,2659.3,2659.2,3.2078]
[1727220426629,0.4093,2659.4,2659.1,1.16523]
[1727220426630,0.37603,2659.2,2659.1,1.16523]
[1727220426827,0.37603,2659.2,2659.1,0.7892]
[1727220427026,0.37603,2659.2,2659.0,0.76235]
[1727220427227,0.37604,2659.1,2659.0,0.3863]
[1727220427430,0.77504,2659.1,2659.0,0.3863]
[1727220427631,0.399,2659.1,2658.8,4.40578]
[1727220427929,0.399,2659.1,2658.9,0.4214]
[1727220427930,0.79116,2659.0,2658.9,0.4214]
[1727220429316,0.4151,2659.0,2658.9,0.79747]
[1727220429628,0.94001,2659.4,2659.0,0.37605]
[1727220429934,0.94001,2659.4,2659.1,0.37604]
[1727220429935,0.37604,2659.2,2659.1,0.37604]
[1727220432228,0.37602,2659.3,2658.9,0.4214]
[1727220432434,0.97775422,2659.4,2658.9,0.4214]
[1727220432435,0.4019,2659.4,2659.1,3.2078]
[1727220432621,0.37601,2659.3,2659.1,3.58384]
[1727220432927,0.37601,2659.3,2659.2,0.8447]
[1727220435131,1.35376422,2659.3,2659.2,0.8447]
[1727220435730,1.35376422,2659.3,2659.2,0.4139]
[1727220436238,1.35376422,2659.3,2659.1,4.18839922]
[1727220436239,0.37603,2659.2,2659.1,4.18839922]
[1727220436430,0.78633,2659.2,2659.1,4.18839922]
[1727220436826,2.26461194,2659.2,2659.1,0.98059922]
[1727220437032,0.78633,2659.2,2659.1,0.98059922]
[1727220437224,2.26461194,2659.2,2659.1,1.62888498]
[1727220437430,2.26626685,2659.2,2659.1,3.10316411]
[1727220438130,2.26626685,2659.2,2659.1,1.62889224]
[1727220438131,0.78633,2659.2,2659.1,1.62889224]
[1727220438336,0.78633,2659.2,2659.1,1.1152899]
[1727220438741,0.78633,2659.2,2659.1,2.00498431]
[1727220439037,2.26633799,2659.2,2659.1,3.47926344]
[1727220439231,0.78633,2659.2,2659.1,3.47926344]
[1727220439425,0.78633,2659.2,2659.1,3.47938259]
[1727220439633,2.26640095,2659.2,2659.1,3.47938259]
[1727220439825,0.78633,2659.2,2659.1,3.47938259]
[1727220440231,0.78633,2659.2,2659.1,2.00510346]
[1727220440630,0.78633,2659.2,2659.1,2.61368175]
[1727220440834,2.75727008,2659.2,2659.1,2.61399082]
[1727220441138,2.75727008,2659.2,2659.1,2.61427228]
[1727220441329,2.75727008,2659.2,2659.1,1.62965399]
[1727220441330,0.78633,2659.2,2659.1,1.62965399]
[1727220441740,0.78633,2659.2,2659.1,2.59011221]
[1727220441939,0.78633,2659.2,2659.1,3.10395271]
[1727220442335,0.78633,2659.2,2659.1,2.59011221]
[1727220442543,0.78633,2659.2,2659.1,3.10398645]
[1727220444040,0.37603,2659.2,2659.1,3.10363985]
[1727220444241,2.34696008,2659.3,2659.1,3.10363985]
[1727220444431,3.14635008,2659.4,2659.3,0.37601]
[1727220444631,2.74885008,2659.4,2659.3,0.98439059]
[1727220445035,2.74885008,2659.4,2659.3,1.49799539]
[1727220445235,0.77791,2659.4,2659.3,1.62884815]
[1727220445444,2.74885008,2659.4,2659.3,2.61305517]
[1727220445633,0.77791,2659.4,2659.3,2.61305255]
[1727220446034,2.74885008,2659.4,2659.3,2.61305255]
[1727220446435,2.74885008,2659.4,2659.3,0.9842044]
[1727220447446,2.75161109,2659.4,2659.3,0.9842044]
[1727220447934,2.75161109,2659.4,2659.3,1.62901046]
[1727220448137,0.77791,2659.4,2659.3,3.50508959]
[1727220448745,0.77791,2659.4,2659.3,2.38971922]
[1727220449040,2.25806232,2659.4,2659.3,3.50497813]
[1727220449247,2.25806232,2659.4,2659.3,3.88098813]
[1727220449444,2.25806232,2659.4,2659.3,3.89807813]
[1727220449747,2.25806232,2659.4,2659.3,3.8979619]
[1727220450443,2.25806232,2659.4,2659.3,4.2739719]
[1727220450746,2.25806232,2659.4,2659.3,3.8979619]
[1727220451438,2.25806232,2659.4,2659.3,4.2739719]
[1727220451839,2.25806232,2659.4,2659.3,3.8979619]
[1727220453248,2.25806232,2659.4,2659.3,3.89787696]
[1727220453544,2.25806232,2659.4,2659.3,4.70954589]
[1727220453545,1.48015232,2659.4,2659.3,4.70954589]
[1727220453749,1.97370109,2659.6,2659.4,0.376]
[1727220453750,1.47969174,2659.5,2659.4,0.376]
[1727220453934,0.37599,2659.5,2659.4,2.98773415]
[1727220454138,1.47969015,2659.5,2659.4,2.98764884]
[1727220454346,1.47969015,2659.5,2659.4,2.98763647]
[1727220454543,1.47969015,2659.5,2659.4,2.00377016]
[1727220454744,1.47969015,2659.5,2659.4,2.98764317]
[1727220454943,1.47969015,2659.5,2659.4,3.47968725]
[1727220456144,1.47969015,2659.5,2659.4,2.00377016]
[1727220456346,1.47969015,2659.5,2659.4,3.47968725]
[1727220456547,1.47969015,2659.5,2659.4,3.47950627]
[1727220457344,1.47969015,2659.5,2659.4,2.00358918]
[1727220457944,1.85568015,2659.5,2659.4,1.62758918]
[1727220458256,2.80568015,2659.5,2659.4,0.98330667]
[1727220458452,2.67126,2659.5,2659.4,0.98330667]
[1727220458644,0.376,2659.4,2659.3,4.19110667]
[1727220458844,1.85523566,2659.4,2659.3,5.81789068]
[1727220459049,1.36211117,2659.4,2659.3,3.1027011]
[1727220459259,1.36211117,2659.4,2659.3,0.98347042]
[1727220459260,2.79524566,2659.4,2659.3,0.98347042]
[1727220459648,0.37601,2659.3,2659.2,0.98353185]
[1727220459840,2.25180528,2659.3,2659.2,2.61049338]
[1727220460046,0.77251,2659.3,2659.2,3.10287862]
[1727220460851,0.77251,2659.3,2659.2,1.62696153]
[1727220461252,0.77251,2659.3,2659.2,3.10287862]
[1727220461453,0.77251,2659.3,2659.2,1.62696153]
[1727220461852,2.25180528,2659.3,2659.2,2.61045174]
[1727220462054,2.25180528,2659.3,2659.2,2.09728729]
[1727220462248,2.25180528,2659.3,2659.2,2.61043997]
[1727220463154,2.25180528,2659.3,2659.2,2.61000298]
[1727220463744,2.25180528,2659.3,2659.2,2.0968503]
[1727220464056,2.25180528,2659.3,2659.2,2.09688822]
[1727220464254,2.25180528,2659.3,2659.2,0.98349021]
[1727220464450,2.25180528,2659.3,2659.2,2.61003168]
[1727220464955,0.77251,2659.3,2659.2,1.62654147]
[1727220465154,1.7587021,2659.3,2659.2,3.10245856]
[1727220465457,1.3622021,2659.3,2659.2,3.50765856]
[1727220466954,1.3622021,2659.3,2659.2,3.50761846]
[1727220467850,1.3622021,2659.3,2659.2,3.50749787]
[1727220468050,1.3622021,2659.3,2659.2,2.39422611]
[1727220468253,0.37601,2659.3,2659.2,2.03162418]
[1727220468556,0.37601,2659.3,2659.2,3.88357127]
[1727220468758,1.36220232,2659.3,2659.2,3.88357127]
[1727220470257,1.36220232,2659.3,2659.2,3.37046225]
[1727220470465,0.37601,2659.3,2659.2,3.88383649]
[1727220470964,1.36220753,2659.3,2659.2,3.88383649]
[1727220471263,1.36219886,2659.3,2659.2,3.50780649]
[1727220472757,1.36219886,2659.3,2659.2,3.50833859]
[1727220473764,1.36219886,2659.3,2659.2,2.99496435]
[1727220473963,1.36219886,2659.3,2659.2,3.50821975]
[1727220474262,1.36219886,2659.3,2659.2,3.88425009]
[1727220474457,0.98618886,2659.3,2659.2,3.86055009]
[1727220474660,1.47929528,2659.4,2659.3,0.37601]
[1727220474860,1.47929528,2659.4,2659.3,1.3596607]
[1727220475063,1.47929528,2659.4,2659.3,0.9836507]
[1727220475064,1.85530528,2659.4,2659.3,0.9836507]
[1727220476559,0.37601,2659.4,2659.3,0.9836507]
[1727220476758,1.85545209,2659.4,2659.3,0.9836507]
[1727220477866,1.85545209,2659.4,2659.3,2.09726521]
[1727220478062,1.85545209,2659.4,2659.3,2.09725918]
[1727220478261,1.85545209,2659.4,2659.3,0.9836507]
[1727220479358,2.79546209,2659.4,2659.3,0.9836507]
[1727220479560,2.79546209,2659.4,2659.2,1.85741709]
[1727220479561,2.85045538,2659.4,2659.1,4.1914507]
[1727220479860,1.31611,2659.2,2659.1,4.1914507]
[1727220480259,1.74101,2659.2,2659.1,4.1914507]
[1727220481074,1.74101,2659.2,2659.1,0.9836507]
[1727220481371,3.22053855,2659.2,2659.1,0.9836507]
[1727220481666,2.28045855,2659.2,2659.1,0.9836507]
[1727220486374,0.98622551,2659.2,2659.1,8.18742447]
[1727220486567,1.47952855,2659.5,2659.1,12.5503754]
[1727220486775,0.98614337,2659.4,2659.3,2.80066957]
[1727220486972,0.98614337,2659.4,2659.3,4.42520445]
[1727220487878,1.36214337,2659.4,2659.3,3.47520445]
[1727220488070,0.98614337,2659.4,2659.3,3.47520445]
[1727220489267,1.36214337,2659.4,2659.3,3.47520445]
[1727220490269,1.36214337,2659.4,2659.3,3.47494927]
[1727220490982,1.36214337,2659.4,2659.3,6.68274927]
[1727220491279,0.98614337,2659.4,2659.3,6.68274927]
[1727220492671,1.36214337,2659.4,2659.3,6.68274927]
[1727220493372,0.98614337,2659.4,2659.3,6.68274927]
[1727220493573,0.98614337,2659.4,2659.3,6.16976308]
[1727220493872,0.98614337,2659.4,2659.3,6.68271384]
[1727220494481,1.36214337,2659.4,2659.3,3.09890384]
[1727220494784,4.01383855,2659.4,2659.3,0.9832206]
[1727220494976,4.96383855,2659.4,2659.3,0.9832206]
[1727220495178,0.37601,2659.3,2659.2,0.9832206]
[1727220495377,1.85538466,2659.3,2659.2,0.9832206]
[1727220496471,1.85538466,2659.3,2658.6,0.176]
[1727220496472,1.31631,2658.8,2658.7,0.263]
[1727220496677,1.31631,2658.8,2658.6,0.176]
[1727220496678,4.7108,2658.8,2658.4,4.68245957]
[1727220496977,4.7108,2658.8,2658.4,4.53394]
[1727220496978,0.9864737,2658.5,2658.4,4.53394]
[1727220497182,0.9864737,2658.6,2658.5,0.88949562]
[1727220497475,2.5808737,2658.7,2658.5,1.98860003]
[1727220497687,2.5808737,2658.7,2658.5,1.47523441]
[1727220497874,2.5808737,2658.7,2658.6,0.4133]
[1727220498684,2.2047737,2658.7,2658.6,0.4133]
[1727220499372,1.8122737,2658.7,2658.6,0.4133]
[1727220499573,7.13621134,2658.9,2658.6,5.63766993]
[1727220499574,7.17268504,2658.9,2658.6,5.63766993]
[1727220499774,5.81013134,2658.9,2658.7,7.25317955]
[1727220499985,5.81013134,2658.9,2658.7,5.63303441]
[1727220500679,5.81013134,2658.9,2658.8,0.37609]
[1727220501377,5.81013134,2658.9,2658.7,6.00912441]
[1727220501773,5.81013134,2658.9,2658.8,1.10724969]
[1727220502080,5.81013134,2658.9,2658.7,6.00912441]
[1727220502280,5.81013134,2658.9,2658.8,1.10722646]
[1727220502479,5.81013134,2658.9,2658.7,6.00912441]
[1727220504985,5.81013134,2658.9,2658.8,0.37609]
[1727220505284,5.81013134,2658.9,2658.8,4.13689]
[1727220505880,0.9864737,2659.0,2658.8,3.7608]
[1727220506083,0.9864737,2659.3,2658.9,7.80527703]
[1727220506381,1.7496737,2659.4,2659.2,0.37603]
[1727220506686,1.7496737,2659.4,2659.3,0.8402]
[1727220508274,0.37602,2659.3,2659.1,0.37604]
[1727220513686,0.37602,2659.3,2659.1,3.58384]
[1727220514188,0.37603,2659.2,2659.1,3.58384]
[1727220518587,1.3736737,2659.4,2659.1,3.58384]
[1727220518792,0.37603,2659.3,2659.1,3.58384]
[1727220518987,0.37603,2659.3,2659.1,0.37604]
[1727220519190,0.37603,2659.3,2659.1,3.58384]
[1727220519384,0.37603,2659.2,2659.1,3.58384]
[1727220520789,0.37603,2659.2,2659.0,2.31543441]
[1727220521095,0.77304,2659.1,2659.0,0.8402]
[1727220521390,0.7942,2659.1,2659.0,0.37606]
[1727220521593,0.7942,2659.1,2659.0,1.48020832]
[1727220522790,0.7942,2659.1,2659.0,1.10414832]
[1727220523089,0.37607,2658.9,2658.8,3.58389]
[1727220523296,0.37607,2658.9,2658.8,5.624194]
[1727220523495,0.37607,2658.9,2658.8,4.73596122]
[1727220523798,0.37607,2658.9,2658.8,5.24809476]
[1727220524295,0.37607,2658.9,2658.8,6.72332917]
[1727220524497,0.37607,2658.9,2658.8,6.21119563]
[1727220524794,0.37607,2658.9,2658.8,6.72332769]
[1727220525288,0.37607,2658.9,2658.8,6.72330419]
[1727220527087,0.37607,2658.9,2658.8,3.51550419]
[1727220527289,0.37607,2658.9,2658.8,6.21119563]
[1727220527581,0.37606,2659.0,2658.8,7.09936709]
[1727220527788,0.37606,2659.0,2658.8,5.48281441]
[1727220527985,0.37606,2659.0,2658.9,1.10422654]
[1727220528196,0.77305,2659.1,2658.9,5.24108654]
[1727220528394,0.77305,2659.1,2658.9,0.37606]
[1727220528592,0.397,2659.1,2659.0,0.37606]
[1727220528794,0.397,2659.1,2659.0,1.48011157]
[1727220528984,1.7602937,2659.3,2659.1,0.37603]
[1727220529187,1.7602937,2659.3,2659.1,4.0267]
[1727220529188,0.37603,2659.2,2659.1,4.0267]
[1727220529492,0.37603,2659.2,2659.1,3.6247]
[1727220529794,0.37603,2659.2,2659.1,3.2078]
[1727220530098,0.37606,2659.0,2658.9,1.47523441]
[1727220530285,0.37607,2658.9,2658.8,3.2078]
[1727220530486,0.78237,2658.9,2658.8,4.82409316]
[1727220530692,0.78237,2658.9,2658.8,4.31206421]
[1727220530983,0.78237,2658.9,2658.8,6.29934382]
[1727220532097,0.78237,2658.9,2658.8,6.29933538]
[1727220532689,0.78237,2658.9,2658.8,6.29941513]
[1727220533090,0.78237,2658.9,2658.8,3.09161513]
[1727220533296,0.78237,2658.9,2658.8,6.29941513]
[1727220534092,0.78237,2658.9,2658.8,5.78737837]
[1727220534291,0.78237,2658.9,2658.8,6.29949901]
[1727220535599,0.78237,2658.9,2658.8,3.09169901]
[1727220535796,0.78237,2658.9,2658.8,6.29949901]
[1727220537496,0.78237,2658.9,2658.8,6.29980623]
[1727220537904,0.78237,2658.9,2658.8,3.09200623]
[1727220538500,0.78237,2658.9,2658.8,6.29980623]
[1727220539301,0.78237,2658.9,2658.8,6.67589623]
[1727220540802,0.78237,2658.9,2658.8,6.1636998]
[1727220540998,0.78237,2658.9,2658.8,6.67576556]
[1727220541799,0.78237,2658.9,2658.8,6.29967556]
[1727220542000,0.78237,2658.9,2658.8,5.78734759]
[1727220542204,0.78237,2658.9,2658.8,6.29968034]
[1727220542399,1.72256,2658.9,2658.8,3.09188034]
[1727220542606,1.72256,2658.9,2658.8,1.61664593]
[1727220543314,1.72256,2658.9,2658.8,1.61669252]
[1727220543603,1.72256,2658.9,2658.8,1.10431318]
[1727220543805,1.72256,2658.9,2658.8,1.61675774]
[1727220544005,1.72256,2658.9,2658.8,1.10431318]
[1727220544202,2.7090337,2658.9,2658.8,0.512445]
[1727220544402,1.31631,2658.8,2658.7,1.47523441]
[1727220544599,1.31631,2658.8,2658.7,2.58001849]
[1727220545204,2.3027837,2658.8,2658.7,1.10478408]
[1727220545393,2.3027837,2658.8,2658.7,0.51254537]
[1727220545593,0.3761,2658.7,2658.6,1.47523441]
[1727220545793,0.7962,2658.7,2658.6,3.09163762]
[1727220547213,0.7962,2658.7,2658.6,3.09159388]